fUST/lending_fUST_20250827
["ID","MTS","AMOUNT","RATE_DAILY","PERIOD"]
[381530517,1756264327379,5916.6630115,0.00024437,2]
[381530518,1756264370485,4000.0,0.00027,120]
[381530519,1756264371545,392.48078432,0.000199,2]
[381530520,1756264399115,471.96662661,0.00024673,2]
[381530521,1756264433675,1412.70977768,0.00025144,2]
[381530522,1756264465562,-198.28154978,0.00025203,2]
[381530523,1756264467100,-185.32252112,0.00025203,2]
[381530524,1756264502748,970.82,0.00025193,10]
[381530525,1756264518036,295.1162218,0.00024218,2]
[381530526,1756264519222,2278.99389923,0.00025102,2]
[381530527,1756264528383,809.02,0.00025193,10]
[381530528,1756264528464,180.39775435,0.00025102,2]
[381530529,1756264533800,180.39775435,0.00025122,2]
[381530530,1756264538464,180.39775435,0.00025141,2]
[381530531,1756264539067,194.99313257,0.00025101,2]
[381530532,1756264540006,194.99313255,0.00025102,2]
[381530533,1756264540126,194.99313255,0.00025102,2]
[381530534,1756264549734,309.4171304,0.000199,2]
[381530535,1756264559444,1130.07,0.00025193,10]
[381530536,1756264562932,300.0,0.000252,2]
[381530537,1756264568892,344.11608,0.00024213,2]
[381530538,1756264584900,941.73,0.00025193,10]
[381530539,1756264595751,800.0,0.00025174,2]
[381530540,1756264598389,784.77,0.00025193,10]
[381530541,1756264612748,653.98,0.00025192,10]
[381530542,1756264615724,2568.71250304,0.000252,2]
[381530543,1756264616057,478.92820939,0.00024673,2]
[381530544,1756264618069,1915.71283754,0.00024673,2]
[381530545,1756264618774,385.416044,0.00024202,2]
[381530546,1756264620071,4306.04353059,0.00024673,2]
[381530547,1756264623129,300.0,0.000252,2]
[381530548,1756264623418,544.98,0.00025192,10]
[381530549,1756264624744,1200.0,0.000252,2]
[381530550,1756264631378,5000.0,0.000252,2]
[381530551,1756264637232,454.15,0.00025192,10]
[381530552,1756264646363,6954.7223662,0.00024202,2]
[381530553,1756264646757,3014.15714328,0.000252,2]
[381530554,1756264651584,378.46,0.00025192,10]
[381530555,1756264661856,10000.01,0.00025102,2]
[381530556,1756264661881,10000.01,0.00025102,2]
[381530557,1756264661905,10000.01,0.00025102,2]
[381530558,1756264661929,10000.01,0.00025102,2]
[381530559,1756264661952,10000.01,0.00025102,2]
[381530560,1756264661975,10000.01,0.00025102,2]
[381530561,1756264661997,10000.01,0.00025102,2]
[381530562,1756264662019,10000.01,0.00025102,2]
[381530563,1756264662042,10000.01,0.00025102,2]
[381530564,1756264662066,10000.01,0.00025102,2]
[381530565,1756264662093,269999.9,0.00025102,2]
[381530566,1756264664880,315.38,0.00025192,10]
[381530567,1756264678917,262.82,0.00025192,10]
[381530568,1756264684310,300.0,0.000252,2]
[381530569,1756264693170,219.01,0.00025191,10]
[381530570,1756264700555,804.5475329,0.00024673,2]
[381530571,1756264701996,9195.4624671,0.00025191,2]
[381530572,1756264702020,10000.01,0.00025191,2]
[381530573,1756264702040,10000.01,0.00025191,2]
[381530574,1756264702064,10000.01,0.00025191,2]
[381530575,1756264702084,10000.01,0.00025191,2]
[381530576,1756264702326,10000.01,0.00025191,2]
[381530577,1756264702348,1679.7551881,0.00025191,2]
[381530578,1756264702380,8320.2548119,0.00025192,2]
[381530579,1756264702401,10000.01,0.00025192,2]
[381530580,1756264702422,10000.01,0.00025192,2]
[381530581,1756264702444,10000.01,0.00025192,2]
[381530582,1756264702466,22554.9828433,0.00025192,2]
[381530583,1756264703351,3214.97194146,0.00024673,2]
[381530584,1756264704692,1584.70583428,0.00025191,2]
[381530585,1756264704767,1584.70583428,0.00025192,2]
[381530586,1756264713782,182.57388633,0.000252,2]
[381530587,1756264713812,1155.31106446,0.000252,2]
[381530588,1756264713948,1155.31106446,0.000252,2]
[381530589,1756264714076,1155.31106446,0.000252,2]
[381530590,1756264714114,1155.31106446,0.000252,2]
[381530591,1756264714164,1155.31106446,0.000252,2]
[381530592,1756264714375,871.46912281,0.000252,2]
[381530593,1756264714397,283.84194165,0.000252,2]
[381530594,1756264714426,500.0,0.000252,2]
[381530595,1756264714504,1155.31106446,0.000252,2]
[381530596,1756264714546,1155.31106446,0.000252,2]
[381530597,1756264714585,1155.31106446,0.000252,2]
[381530598,1756264714619,1155.31106446,0.000252,2]
[381530599,1756264714661,1155.31106446,0.000252,2]
[381530600,1756264714787,1155.31106446,0.000252,2]
[381530601,1756264714834,1155.31106446,0.000252,2]
[381530602,1756264714878,1128.99060713,0.000252,2]
[381530603,1756264714901,26.32045733,0.000252,2]
[381530604,1756264714964,1155.31106446,0.000252,2]
[381530605,1756264715033,1155.31106446,0.000252,2]
[381530606,1756264715533,1155.31106446,0.000252,2]
[381530607,1756264715680,1155.31106446,0.000252,2]
[381530608,1756264715841,1155.31106446,0.000252,2]
[381530609,1756264716450,500.0,0.000252,2]
[381530610,1756264716477,500.0,0.000252,2]
[381530611,1756264716504,500.0,0.000252,2]
[381530612,1756264716532,613.92061476,0.000252,2]
[381530613,1756264716558,271.95714683,0.000252,2]
[381530614,1756264716585,500.0,0.000252,2]
[381530615,1756264716610,500.0,0.000252,2]
[381530616,1756264716644,500.0,0.000252,2]
[381530617,1756264716670,311.25645878,0.000252,2]
[381530618,1756264716692,188.74354122,0.000252,2]
[381530619,1756264716717,589.9370507,0.000252,2]
[381530620,1756264716746,500.0,0.000252,2]
[381530621,1756264716771,500.0,0.000252,2]
[381530622,1756264716799,500.0,0.000252,2]
[381530623,1756264717013,500.0,0.000252,2]
[381530624,1756264717049,500.0,0.000252,2]
[381530625,1756264717076,500.0,0.000252,2]
[381530626,1756264717102,500.0,0.000252,2]
[381530627,1756264717137,538.85290518,0.000252,2]
[381530628,1756264717167,500.0,0.000252,2]
[381530629,1756264717193,500.0,0.000252,2]
[381530630,1756264717223,500.0,0.000252,2]
[381530631,1756264717250,460.99932234,0.000252,2]
[381530632,1756264717276,500.0,0.000252,2]
[381530633,1756264717310,395.79118014,0.000252,2]
[381530634,1756264717337,500.0,0.000252,2]
[381530635,1756264717369,500.0,0.000252,2]
[381530636,1756264717400,400.49539477,0.000252,2]
[381530637,1756264717426,500.0,0.000252,2]
[381530638,1756264717465,425.19060565,0.000252,2]
[381530639,1756264717487,74.80939435,0.000252,2]
[381530640,1756264717516,500.0,0.000252,2]
[381530641,1756264717545,500.0,0.000252,2]
[381530642,1756264717581,500.0,0.000252,2]
[381530643,1756264717996,422.53850516,0.000252,2]
[381530644,1756264718024,500.0,0.000252,2]
[381530645,1756264718057,500.0,0.000252,2]
[381530646,1756264718087,500.0,0.000252,2]
[381530647,1756264718117,500.0,0.000252,2]
[381530648,1756264718146,500.0,0.000252,2]
[381530649,1756264718180,500.0,0.000252,2]
[381530650,1756264718257,500.0,0.000252,2]
[381530651,1756264718316,500.0,0.000252,2]
[381530652,1756264718371,383.9589347,0.000252,2]
[381530653,1756264718415,500.0,0.000252,2]
[381530654,1756264718446,500.0,0.000252,2]
[381530655,1756264718486,500.0,0.000252,2]
[381530656,1756264718518,500.0,0.000252,2]
[381530657,1756264718547,500.0,0.000252,2]
[381530658,1756264718582,500.0,0.000252,2]
[381530659,1756264718620,500.0,0.000252,2]
[381530660,1756264718652,118.70316579,0.000252,2]
[381530661,1756264718675,381.29683421,0.000252,2]
[381530662,1756264718702,500.0,0.000252,2]
[381530663,1756264718729,500.0,0.000252,2]
[381530664,1756264718755,500.0,0.000252,2]
[381530665,1756264718784,500.0,0.000252,2]
[381530666,1756264718818,500.0,0.000252,2]
[381530667,1756264718846,500.0,0.000252,2]
[381530668,1756264718882,500.0,0.000252,2]
[381530669,1756264718925,500.0,0.000252,2]
[381530670,1756264718960,500.0,0.000252,2]
[381530671,1756264718987,500.0,0.000252,2]
[381530672,1756264719014,500.0,0.000252,2]
[381530673,1756264719055,500.0,0.000252,2]
[381530674,1756264719092,500.0,0.000252,2]
[381530675,1756264719121,500.0,0.000252,2]
[381530676,1756264719155,500.0,0.000252,2]
[381530677,1756264719181,500.0,0.000252,2]
[381530678,1756264719215,500.0,0.000252,2]
[381530679,1756264719265,500.0,0.000252,2]
[381530680,1756264721889,416.07491783,0.000199,2]
[381530681,1756264721995,202.63824796,0.00021627,2]
[381530682,1756264722025,213.43666965,0.00021627,2]
[381530683,1756264722084,416.07491761,0.00023353,2]
[381530684,1756264722119,182.51,0.00025192,10]
[381530685,1756264722181,416.07491761,0.0002508,2]
[381530686,1756264725251,10000.01,0.00025141,2]
[381530687,1756264725275,10000.01,0.00025141,2]
[381530688,1756264725302,8267.95914757,0.00025141,2]
[381530689,1756264727722,785.61152383,0.000252,2]
[381530690,1756264727748,500.0,0.000252,2]
[381530691,1756264727776,446.4393286,0.000252,2]
[381530692,1756264727801,339.17219523,0.000252,2]
[381530693,1756264727830,785.61152383,0.000252,2]
[381530694,1756264727856,165.20946754,0.000252,2]
[381530695,1756264727891,785.61152383,0.000252,2]
[381530696,1756264727923,785.61152383,0.000252,2]
[381530697,1756264727957,785.61152383,0.000252,2]
[381530698,1756264728390,785.61152383,0.000252,2]
[381530699,1756264728421,785.61152383,0.000252,2]
[381530700,1756264728462,785.61152383,0.000252,2]
[381530701,1756264728668,785.61152383,0.000252,2]
[381530702,1756264728740,785.61152383,0.000252,2]
[381530703,1756264743338,300.0,0.000252,2]
[381530704,1756264747688,500.0,0.000252,2]
[381530705,1756264747720,500.0,0.000252,2]
[381530706,1756264747761,500.0,0.000252,2]
[381530707,1756264747855,500.0,0.000252,2]
[381530708,1756264747936,500.0,0.000252,2]
[381530709,1756264747976,400.0,0.000252,2]
[381530710,1756264748006,152.09,0.00025191,10]
[381530711,1756264748034,500.0,0.000252,2]
[381530712,1756264748069,500.0,0.000252,2]
[381530713,1756264748097,500.0,0.000252,2]
[381530714,1756264748130,500.0,0.000252,2]
[381530715,1756264748171,500.0,0.000252,2]
[381530716,1756264755119,591.38758933,0.000252,2]
[381530717,1756264755180,591.38758933,0.000252,2]
[381530718,1756264755274,591.38758933,0.000252,2]
[381530719,1756264755395,591.38758933,0.000252,2]
[381530720,1756264755552,591.38758933,0.000252,2]
[381530721,1756264755732,591.38758933,0.000252,2]
[381530722,1756264755782,591.38758933,0.000252,2]
[381530723,1756264769513,10000.01,0.000252,2]
[381530724,1756264769535,10000.01,0.000252,2]
[381530725,1756264769556,10000.01,0.000252,2]
[381530726,1756264769577,10000.01,0.000252,2]
[381530727,1756264769598,6107.96,0.000252,2]
[381530728,1756264772957,160.98884375,0.000252,2]
[381530729,1756264775300,3473.33693358,0.000252,2]
[381530730,1756264779280,2139.2297267,0.00025131,2]
[381530731,1756264783358,5000.0,0.000252,2]
[381530732,1756264794299,3114.26,0.00025192,3]
[381530733,1756264801247,5000.0,0.000252,2]
[381530734,1756264802238,300.0,0.000252,2]
[381530735,1756264802324,300.0,0.000252,2]
[381530736,1756264803375,300.0,0.000252,2]
[381530737,1756264803463,760.5,0.00025191,10]
[381530738,1756264805061,1557.13,0.00025192,3]
[381530739,1756264806758,151.0,0.00025004,2]
[381530740,1756264806796,1200.0,0.000252,2]
[381530741,1756264807356,431.38,0.00025101,2]
[381530742,1756264807391,1996.73879842,0.00025101,2]
[381530743,1756264807452,156.587,0.00025004,2]
[381530744,1756264808039,198.99657192,0.00025004,2]
[381530745,1756264809167,300.0,0.000252,2]
[381530746,1756264809563,824.69886077,0.000252,2]
[381530747,1756264815980,1248.97,0.00025192,3]
[381530748,1756264816473,5000.0,0.000252,2]
[381530749,1756264826646,624.49,0.00025192,3]
[381530750,1756264828015,9375.52,0.00025102,2]
[381530751,1756264828038,10000.01,0.00025102,2]
[381530752,1756264828060,10000.01,0.00025102,2]
[381530753,1756264828082,10000.01,0.00025102,2]
[381530754,1756264828105,10000.01,0.00025102,2]
[381530755,1756264828126,10000.01,0.00025102,2]
[381530756,1756264828148,10000.01,0.00025102,2]
[381530757,1756264828172,10000.01,0.00025102,2]
[381530758,1756264828194,10000.01,0.00025102,2]
[381530759,1756264828216,10000.01,0.00025102,2]
[381530760,1756264828239,270624.39,0.00025102,2]
[381530761,1756264828640,165.0,0.00025672,120]
[381530762,1756264829929,165.0,0.00026956,120]
[381530763,1756264831974,5000.0,0.000252,2]
[381530764,1756264837282,312.24,0.00025192,3]
[381530765,1756264840263,4687.77,0.000252,2]
[381530766,1756264840286,312.23,0.000252,2]
[381530767,1756264848264,156.12,0.00025192,3]
[381530768,1756264848496,5000.0,0.000252,2]
[381530769,1756264859338,468.41,0.00025192,3]
[381530770,1756264862886,300.0,0.000252,2]
[381530771,1756264864486,5000.0,0.000252,2]
[381530772,1756264873104,30464.43267628,0.0003179,120]
[381530773,1756264880464,5000.0,0.000252,2]
[381530774,1756264881445,-151.0,0.00025201,7]
[381530775,1756264881466,-82.51894443,0.00025201,7]
[381530776,1756264884368,-68.48105557,0.00025201,7]
[381530777,1756264884392,-151.0,0.00025201,7]
[381530778,1756264884414,-56.8141755,0.00025201,7]
[381530779,1756264886535,-94.1858245,0.00025201,7]
[381530780,1756264886557,-151.0,0.00025201,7]
[381530781,1756264886579,-93.06495618,0.00025201,7]
[381530782,1756264889757,-57.93504382,0.00025201,7]
[381530783,1756264889780,-151.0,0.00025201,7]
[381530784,1756264889802,-111.37046125,0.00025201,7]
[381530785,1756264890447,500.0,0.000252,2]
[381530786,1756264890480,500.0,0.000252,2]
[381530787,1756264890508,500.0,0.000252,2]
[381530788,1756264890537,500.0,0.000252,2]
[381530789,1756264890565,600.0,0.000252,2]
[381530790,1756264890593,500.0,0.000252,2]
[381530791,1756264890628,500.0,0.000252,2]
[381530792,1756264890663,650.0,0.000252,2]
[381530793,1756264890690,500.0,0.000252,2]
[381530794,1756264890717,500.0,0.000252,2]
[381530795,1756264890755,500.0,0.000252,2]
[381530796,1756264890795,500.0,0.000252,2]
[381530797,1756264890823,500.0,0.000252,2]
[381530798,1756264890855,500.0,0.000252,2]
[381530799,1756264890883,500.0,0.000252,2]
[381530800,1756264891535,500.0,0.000252,2]
[381530801,1756264891586,373.51169731,0.000252,2]
[381530802,1756264891809,-39.62953875,0.00025201,7]
[381530803,1756264891832,-151.0,0.00025201,7]
[381530804,1756264891853,-53.51894443,0.00025201,7]
[381530805,1756264893284,-97.48105557,0.00025201,7]
[381530806,1756264893309,-151.0,0.00025201,7]
[381530807,1756264893334,-51.51894443,0.00025201,7]
[381530808,1756264895052,1376.49830269,0.00024203,2]
[381530809,1756264895075,3164.25304241,0.00024203,2]
[381530810,1756264895312,-99.48105557,0.00025201,7]
[381530811,1756264895335,-100.6850015,0.00025201,7]
[381530812,1756264896196,261.28254002,0.000252,2]
[381530813,1756264897663,151.0,0.000252,19]
[381530814,1756264898287,5000.0,0.000252,2]
[381530815,1756264907243,1771.71044885,0.000199,2]
[381530816,1756264907344,1771.71044866,0.00021627,2]
[381530817,1756264907445,1771.71044866,0.00023353,2]
[381530818,1756264907560,1771.71044866,0.0002508,2]
[381530819,1756264913757,5000.0,0.000252,2]
[381530820,1756264918756,452.99,0.00025191,10]
[381530821,1756264922663,500.0,0.000252,2]
[381530822,1756264922692,500.0,0.000252,2]
[381530823,1756264922720,650.0,0.000252,2]
[381530824,1756264922747,500.0,0.000252,2]
[381530825,1756264922778,500.0,0.000252,2]
[381530826,1756264922908,500.0,0.000252,2]
[381530827,1756264922960,500.0,0.000252,2]
[381530828,1756264923186,300.0,0.000252,2]
[381530829,1756264925274,1200.0,0.000252,2]
[381530830,1756264930010,5000.0,0.000252,2]
[381530831,1756264934245,500.0,0.000252,2]
[381530832,1756264934274,500.0,0.000252,2]
[381530833,1756264934301,500.0,0.000252,2]
[381530834,1756264934333,500.0,0.000252,2]
[381530835,1756264934368,500.0,0.000252,2]
[381530836,1756264934399,500.0,0.000252,2]
[381530837,1756264934432,500.0,0.000252,2]
[381530838,1756264934460,347.68086814,0.000252,2]
[381530839,1756264934486,502.31289663,0.000252,2]
[381530840,1756264934513,371.63560919,0.000252,2]
[381530841,1756264934545,500.0,0.000252,2]
[381530842,1756264934574,500.0,0.000252,2]
[381530843,1756264934602,500.0,0.000252,2]
[381530844,1756264934633,500.0,0.000252,2]
[381530845,1756264934667,500.0,0.000252,2]
[381530846,1756264934699,500.0,0.000252,2]
[381530847,1756264934729,372.86184344,0.000252,2]
[381530848,1756264934761,458.40339404,0.000252,2]
[381530849,1756264934794,500.0,0.000252,2]
[381530850,1756264934821,500.0,0.000252,2]
[381530851,1756264934853,447.11538856,0.000252,2]
[381530852,1756264934876,52.88461144,0.000252,2]
[381530853,1756264934907,500.0,0.000252,2]
[381530854,1756264934933,500.0,0.000252,2]
[381530855,1756264934965,500.0,0.000252,2]
[381530856,1756264935006,500.0,0.000252,2]
[381530857,1756264935034,500.0,0.000252,2]
[381530858,1756264935061,500.0,0.000252,2]
[381530859,1756264935093,422.72496646,0.000252,2]
[381530860,1756264935121,500.0,0.000252,2]
[381530861,1756264935194,500.0,0.000252,2]
[381530862,1756264935241,500.0,0.000252,2]
[381530863,1756264935288,408.63825007,0.000252,2]
[381530864,1756264935353,500.0,0.000252,2]
[381530865,1756264935401,500.0,0.000252,2]
[381530866,1756264935454,500.0,0.000252,2]
[381530867,1756264935508,500.0,0.000252,2]
[381530868,1756264935550,500.0,0.000252,2]
[381530869,1756264935602,500.0,0.000252,2]
[381530870,1756264935644,500.0,0.000252,2]
[381530871,1756264935688,500.0,0.000252,2]
[381530872,1756264935735,500.0,0.000252,2]
[381530873,1756264935841,115.76217203,0.000252,2]
[381530874,1756264935873,384.23782797,0.000252,2]
[381530875,1756264935990,500.0,0.000252,2]
[381530876,1756264936045,500.0,0.000252,2]
[381530877,1756264936083,500.0,0.000252,2]
[381530878,1756264936128,500.0,0.000252,2]
[381530879,1756264936178,500.0,0.000252,2]
[381530880,1756264936216,500.0,0.000252,2]
[381530881,1756264936256,500.0,0.000252,2]
[381530882,1756264936300,500.0,0.000252,2]
[381530883,1756264936340,500.0,0.000252,2]
[381530884,1756264936415,500.0,0.000252,2]
[381530885,1756264936474,500.0,0.000252,2]
[381530886,1756264936517,500.0,0.000252,2]
[381530887,1756264936569,500.0,0.000252,2]
[381530888,1756264936607,500.0,0.000252,2]
[381530889,1756264936709,500.0,0.000252,2]
[381530890,1756264936780,500.0,0.000252,2]
[381530891,1756264936856,500.0,0.000252,2]
[381530892,1756264936885,569.91655925,0.000252,2]
[381530893,1756264936917,500.0,0.000252,2]
[381530894,1756264936950,45.85561278,0.000252,2]
[381530895,1756264937325,454.14438722,0.000252,2]
[381530896,1756264937745,500.0,0.000252,2]
[381530897,1756264937773,500.0,0.000252,2]
[381530898,1756264937840,500.0,0.000252,2]
[381530899,1756264937897,500.0,0.000252,2]
[381530900,1756264937952,478.81713044,0.000252,2]
[381530901,1756264944219,377.49,0.00025191,10]
[381530902,1756264944452,500.00000001,0.000252,2]
[381530903,1756264946664,5000.0,0.000252,2]
[381530904,1756264952436,2710.22911041,0.000252,2]
[381530905,1756264954899,314.57,0.00025191,10]
[381530906,1756264955163,4765.58704316,0.000252,2]
[381530907,1756264955470,386.53523671,0.000252,2]
[381530908,1756264957063,1271.5606878,0.00024396,2]
[381530909,1756264963465,5000.0,0.000252,2]
[381530910,1756264965410,314.57,0.00025191,10]
[381530911,1756264978636,5000.0,0.000252,2]
[381530912,1756264979917,209.72,0.00025191,10]
[381530913,1756264980462,4790.29,0.00025131,2]
[381530914,1756264980485,10000.01,0.00025131,2]
[381530915,1756264980509,4055.01943172,0.00025131,2]
[381530916,1756264980645,318.05457621,0.00025101,2]
[381530917,1756264983037,300.0,0.000252,2]
[381530918,1756264989909,10000.01,0.00025101,2]
[381530919,1756264989932,10000.01,0.00025101,2]
[381530920,1756264989954,10000.01,0.00025101,2]
[381530921,1756264989975,10000.01,0.00025101,2]
[381530922,1756264989996,10000.01,0.00025101,2]
[381530923,1756264990019,10000.01,0.00025101,2]
[381530924,1756264990042,10000.01,0.00025101,2]
[381530925,1756264990064,10000.01,0.00025101,2]
[381530926,1756264990088,10000.01,0.00025101,2]
[381530927,1756264990110,10000.01,0.00025101,2]
[381530928,1756264990133,120605.20075376,0.00025101,2]
[381530929,1756264994969,5000.0,0.00025,2]
[381530930,1756264997785,-174.76,0.00025091,10]
[381530931,1756265003485,363.85923096,0.00025,2]
[381530932,1756265004105,-195.47,0.00025101,2]
[381530933,1756265004157,293.8947198,0.00024673,2]
[381530934,1756265005773,-873.84,0.00025091,10]
[381530935,1756265006332,1174.40330033,0.00024673,2]
[381530936,1756265006520,216.14835892,0.00025,10]
[381530937,1756265006547,-263.59869665,0.00025101,2]
[381530938,1756265010040,-179.249725,0.00025101,2]
[381530939,1756265011658,-219.11092854,0.00025101,2]
[381530940,1756265011690,5000.0,0.00025,2]
[381530941,1756265012414,301.82224038,0.00027397,120]
[381530942,1756265013344,-257.91717519,0.00025101,2]
[381530943,1756265014928,-235.19655808,0.00025101,2]
[381530944,1756265017162,-183.23645434,0.00025091,2]
[381530945,1756265018091,380.0,0.00024658,2]
[381530946,1756265019212,-307.96027296,0.00025091,2]
[381530947,1756265020051,-217.81996534,0.00025091,2]
[381530948,1756265022536,-262.40773611,0.00025101,2]
[381530949,1756265026583,-5153.73680544,0.00025101,2]
[381530950,1756265027336,-168.29647525,0.00025101,2]
[381530951,1756265027738,5000.0,0.00025,2]
[381530952,1756265028949,-152.88599196,0.00025101,2]
[381530953,1756265030178,-10000.01,0.00025101,2]
[381530954,1756265030308,-10000.01,0.00025101,2]
[381530955,1756265030473,-10000.01,0.00025101,2]
[381530956,1756265030623,-10000.01,0.00025101,2]
[381530957,1756265030769,-10000.01,0.00025101,2]
[381530958,1756265030927,-10000.01,0.00025101,2]
[381530959,1756265031082,-10000.01,0.00025101,2]
[381530960,1756265031439,-10000.01,0.00025101,2]
[381530961,1756265031461,-10000.01,0.00025101,2]
[381530962,1756265032025,-186.25526511,0.00025101,2]
[381530963,1756265032151,-10000.01,0.00025101,2]
[381530964,1756265033759,-178.02437,0.00025101,2]
[381530965,1756265036632,-431.42064643,0.00025101,2]
[381530969,1756265038838,-217.0,0.00025101,2]
[381530970,1756265040158,-10000.01,0.00025101,2]
[381530971,1756265040314,-10000.01,0.00025101,2]
[381530972,1756265040430,-10000.01,0.00025101,2]
[381530973,1756265040545,-10000.01,0.00025101,2]
[381530974,1756265040676,-1293.98887248,0.00025101,2]
[381530975,1756265040714,-7412.03225504,0.00025191,2]
[381530976,1756265040851,-10000.01,0.00025191,2]
[381530977,1756265041103,-10000.01,0.00025191,2]
[381530978,1756265041195,-10000.01,0.00025191,2]
[381530979,1756265041234,-10000.01,0.00025191,2]
[381530980,1756265041336,-10000.01,0.00025191,2]
[381530981,1756265044413,5000.0,0.00025,2]
[381530982,1756265048171,-300.0,0.0002519,2]
[381530983,1756265048211,-9400.01,0.00025191,2]
[381530984,1756265048296,-10000.01,0.00025191,2]
[381530985,1756265061006,5000.0,0.00025,2]
[381530986,1756265076708,5000.0,0.00025,2]
[381530987,1756265085372,3102.55488639,0.000199,2]
[381530988,1756265085481,3102.55488614,0.00021627,2]
[381530989,1756265085575,3102.55488614,0.00023353,2]
[381530990,1756265086968,-188.0,0.0002508,2]
[381530991,1756265089161,-184.4834064,0.0002508,2]
[381530992,1756265091849,-180.135331,0.0002508,2]
[381530993,1756265093167,5000.0,0.00025,2]
[381530994,1756265094117,-298.55881157,0.0002508,2]
[381530995,1756265097481,-300.0,0.0002508,2]
[381530996,1756265099225,-216.36391022,0.0002508,2]
[381530997,1756265101473,-265.19483079,0.0002508,2]
[381530998,1756265103628,-237.1030353,0.0002508,2]
[381530999,1756265107127,-213.34329981,0.0002508,2]
[381531000,1756265108746,-268.69617012,0.0002508,2]
[381531001,1756265110156,5000.0,0.00025,2]
[381531002,1756265111005,-184.65371501,0.0002508,2]
[381531003,1756265113910,-446.70365809,0.0002508,2]
[381531004,1756265114202,93200.8542066,0.00024191,2]
[381531005,1756265117194,-119.31871783,0.0002508,2]
[381531006,1756265117225,-201.5453224,0.00025091,2]
[381531007,1756265119847,-163.25467556,0.00025091,2]
[381531008,1756265121323,-105.45743162,0.00025091,2]
[381531009,1756265121344,-102.56132893,0.00025091,2]
[381531010,1756265123789,-197.39813241,0.00025091,2]
[381531011,1756265125193,1115.34652538,0.00024991,2]
[381531012,1756265125452,-291.71201477,0.00025091,2]
[381531013,1756265126597,5000.0,0.00025,2]
[381531014,1756265127288,183.0,0.00025443,120]
[381531015,1756265128821,-301.49648334,0.00025091,2]
[381531016,1756265131893,-254.70720371,0.00025091,2]
[381531017,1756265133954,-207.07753786,0.00025091,2]
[381531018,1756265134213,263.26280876,0.00024991,2]
[381531022,1756265137303,-169.59226389,0.00025091,2]